{"text_format":"2","workbook":"xlsx","n_sheets":19,"sheets":["entrata_-_titoli","entrate_tributarie_-_categorie","entrate_da_trasferimenti_corren","entrate_extratributarie_-_categ","entrate_in_conto_capitale_-_cat","entrate_in_conto_capitale_-_rid","entrate_in_conto_capitale_-_acc","principali_entrate_tributarie","principali_entrate_da_trasferim","principali_entrate_extratributa","principali_entrate_in_conto_cap","spesa_-_titoli","spese_correnti_-_missioni","spese_correnti_-_macroaggregati","spese_in_conto_capitale_-_missi","spese_in_conto_capitale_-_macro","principali_spese_per_investimen","equilibri_di_bilancio","entità_mutui"],"not_rendered":{"charts":73,"images":0,"macros":0,"external_links":0,"defined_names":0,"comments":0,"pivot_tables":0},"unopened":[],"bounds":{"document_bytes":16777216,"sheet_cells":100000,"run_cost":"one","rows_first":2000,"rows_last":500,"rows_between":2000,"halvings":0,"cell_chars":16384,"cell_head_chars":4096},"cells_cut":0,"cells_raw":0,"read":"whole","date_system":"1900"}

{"sheet":"entrata_-_titoli","index":0,"n_rows":23,"n_cols":6,"rows_kept":23,"cut":false,"hidden":false,"merged":[[0,2,0,6],[2,1,2,2],[2,3,2,5]]}
[null,null,"Comune di Lozio\nProvincia di Brescia\n\nDati \"Bilancio Facile\" - Entrate\n"]
[]
[null,"TITOLO",null,"TOTALE"]
[null,null,null,2017,2018,2019]
[null,null,null,"STANZIAMENTI CP","STANZIAMENTI CP","STANZIAMENTI CP"]
[null,1,"Entrate correnti di natura tributaria, contributiva e perequativa",{"$f":"'entrate_tributarie_-_categorie'!F10","v":328000},{"$f":"'entrate_tributarie_-_categorie'!G10","v":326500},{"$f":"'entrate_tributarie_-_categorie'!H10","v":326500}]
[null,2,"Trasferimenti correnti",{"$f":"entrate_da_trasferimenti_corren!F11","v":15580},{"$f":"entrate_da_trasferimenti_corren!G11","v":10180},{"$f":"entrate_da_trasferimenti_corren!H11","v":10180}]
[null,3,"Entrate extratributarie",{"$f":"'entrate_extratributarie_-_categ'!F11","v":177955},{"$f":"'entrate_extratributarie_-_categ'!G11","v":177955},{"$f":"'entrate_extratributarie_-_categ'!H11","v":177955}]
[null,4,"Entrate in conto capitale",{"$f":"'entrate_in_conto_capitale_-_cat'!F11","v":3847941},{"$f":"'entrate_in_conto_capitale_-_cat'!G11","v":1413585},{"$f":"'entrate_in_conto_capitale_-_cat'!H11","v":48585}]
[null,5,"Entrate da riduzione di attività finanziarie",{"$f":"'entrate_in_conto_capitale_-_rid'!F10","v":0},0,0]
[null,6,"Accensione Prestiti",{"$f":"'entrate_in_conto_capitale_-_acc'!F10","v":0},{"$f":"'entrate_in_conto_capitale_-_acc'!G10","v":0},{"$f":"'entrate_in_conto_capitale_-_acc'!H10","v":0}]
[null,7,"Anticipazioni da istituto tesoriere/cassiere",147876,147876,147876]
[null,9,"Entrate per conto terzi e partite di giro",282000,282000,282000]
[null,null,null,0,0,0]
[null,null,"TOTALE",{"$f":"SUM(D6:D14)","v":4799352},{"$f":"SUM(E6:E14)","v":2358096},{"$f":"SUM(F6:F14)","v":993096}]
{"$rows_empty":7}
[null,null," "]

{"sheet":"entrate_tributarie_-_categorie","index":1,"n_rows":10,"n_cols":8,"rows_kept":10,"cut":false,"hidden":false,"merged":[[0,2,0,6],[2,1,2,2],[2,3,2,4],[2,5,2,7]]}
[null,null,"Comune di Lozio\nProvincia di Brescia\n\nDati \"Bilancio Facile\" - Entrate tributarie\n"]
[]
[null,"TITOLO 1",null,"CATEGORIA",null,"TOTALE"]
[{"$nulls":5},2017,2018,2019]
[{"$nulls":5},"STANZIAMENTI CP","STANZIAMENTI CP","STANZIAMENTI CP"]
[null,1,"Entrate correnti di natura tributaria, contributiva e perequativa",10101,"Imposte, tasse e proventi assimilati",308000,306500,306500]
[null,null,null,10104,"Compartecipazioni di tributi",0,0,0]
[null,null,null,10301,"Fondi perequativi da Amministrazioni Centrali",20000,20000,20000]
[null,null,null,10302,"Fondi perequativi dalla Regione o Provincia auton.",0,0,0]
[null,null,"TOTALE",null,null,{"$f":"SUM(F6:F9)","v":328000},{"$f":"SUM(G6:G9)","v":326500},326500]

{"sheet":"entrate_da_trasferimenti_corren","index":2,"n_rows":11,"n_cols":8,"rows_kept":11,"cut":false,"hidden":false,"merged":[[0,2,0,6],[2,1,2,2],[2,3,2,4],[2,5,2,7]]}
[null,null,"Comune di Lozio\nProvincia di Brescia\n\nDati \"Bilancio Facile\" - Entrate da trasferimenti correnti\n"]
[]
[null,"TITOLO 2",null,"CATEGORIA",null,"TOTALE"]
[{"$nulls":5},2017,2018,2019]
[{"$nulls":5},"STANZIAMENTI CP","STANZIAMENTI CP","STANZIAMENTI CP"]
[null,2,"Trasferimenti correnti",20101,"Trasferimenti correnti da Amministrazioni pubbliche",13480,8080,8080]
[null,null,null,20102,"Trasferimenti correnti da Famiglie",0,0,0]
[null,null,null,20103,"Trasferimenti correnti da Imprese",2100,2100,2100]
[null,null,null,20104,"Trasferimenti correnti da Istituzioni Sociali Private",0,0,0]
[null,null,null,20105,"Trasferimenti correnti dall’Unione europea e dal Resto del Mondo",0,0,0]
[null,null,"TOTALE",null,null,{"$f":"SUM(F6:F10)","v":15580},{"$f":"SUM(G6:G10)","v":10180},10180]

{"sheet":"entrate_extratributarie_-_categ","index":3,"n_rows":11,"n_cols":8,"rows_kept":11,"cut":false,"hidden":false,"merged":[[0,2,0,6],[2,1,2,2],[2,3,2,4],[2,5,2,7]]}
[null,null,"Comune di Lozio\nProvincia di Brescia\n\nDati \"Bilancio Facile\" - Entrate extratributarie\n"]
[]
[null,"TITOLO 3",null,"CATEGORIA",null,"TOTALE"]
[{"$nulls":5},2017,2018,2019]
[{"$nulls":5},"STANZIAMENTI CP","STANZIAMENTI CP","STANZIAMENTI CP"]
[null,3,"Entrate extratributarie",30100,"Vendita di beni e servizi e proventi derivanti dalla gestione dei beni",156275,156275,156275]
[null,null,null,30200,"Proventi derivanti dall'attività di controllo e repressione delle irregolarità e degli illeciti",4000,4000,4000]
[null,null,null,30300,"Interessi attivi",500,500,500]
[null,null,null,30400,"Altre entrate da redditi da capitale",0,0,0]
[null,null,null,30500,"Rimborsi e altre entrate correnti",17180,17180,17180]
[null,null,"TOTALE",null,null,{"$f":"SUM(F6:F10)","v":177955},{"$f":"SUM(G6:G10)","v":177955},177955]

{"sheet":"entrate_in_conto_capitale_-_cat","index":4,"n_rows":11,"n_cols":8,"rows_kept":11,"cut":false,"hidden":false,"merged":[[0,2,0,6],[2,1,2,2],[2,3,2,4],[2,5,2,7]]}
[null,null,"Comune di Lozio\nProvincia di Brescia\n\nDati \"Bilancio Facile\" - Entrate in conto capitale\n"]
[]
[null,"TITOLO 4",null,"CATEGORIA",null,"TOTALE"]
[{"$nulls":5},2017,2018,2019]
[{"$nulls":5},"STANZIAMENTI CP","STANZIAMENTI CP","STANZIAMENTI CP"]
[null,4,"Entrate in conto capitale",40100,"Tributi in conto capitale",0,0,0]
[null,null,null,40200,"Contributi agli investimenti",3026823,385000,20000]
[null,null,null,40300,"Altri trasferimenti in conto capitale",700000,1000000,0]
[null,null,null,40400,"Entrate da alienazione di beni materiali e immateriali",97118,4585,4585]
[null,null,null,40500,"Altre entrate in conto capitale",24000,24000,24000]
[null,null,"TOTALE",null,null,{"$f":"SUM(F6:F10)","v":3847941},{"$f":"SUM(G6:G10)","v":1413585},48585]

{"sheet":"entrate_in_conto_capitale_-_rid","index":5,"n_rows":10,"n_cols":8,"rows_kept":10,"cut":false,"hidden":false,"merged":[[0,2,0,6],[2,1,2,2],[2,3,2,4],[2,5,2,7]]}
[null,null,"Comune di Lozio\nProvincia di Brescia\n\nDati \"Bilancio Facile\" - Entrate da riduzione di attività finanziarie\n"]
[]
[null,"TITOLO 5",null,"CATEGORIA",null,"TOTALE"]
[{"$nulls":5},2017,2018,2019]
[{"$nulls":5},"STANZIAMENTI CP","STANZIAMENTI CP","STANZIAMENTI CP"]
[null,5,"Entrate da riduzione di attività finanziarie",50100,"Alienazione di attività finanziarie",0,0,0]
[null,null,null,50200,"Riscossione crediti di breve termine",0,0,0]
[null,null,null,50300,"Riscossione crediti di medio-lungo termine",0,0,0]
[null,null,null,50400,"Altre entrate per riduzione di attività finanziarie",0,0,0]
[null,null,"TOTALE",null,null,{"$f":"SUM(F6:F9)","v":0},{"$f":"SUM(G6:G9)","v":0},0]

{"sheet":"entrate_in_conto_capitale_-_acc","index":6,"n_rows":10,"n_cols":8,"rows_kept":10,"cut":false,"hidden":false,"merged":[[0,3,0,7],[2,1,2,2],[2,3,2,4],[2,5,2,7]]}
[null,null,null,"Comune di Lozio\nProvincia di Brescia\n\nDati \"Bilancio Facile\" - Entrate da accensione prestiti\n"]
[]
[null,"TITOLO 6",null,"CATEGORIA",null,"TOTALE"]
[{"$nulls":5},2017,2018,2019]
[{"$nulls":5},"STANZIAMENTI CP","STANZIAMENTI CP","STANZIAMENTI CP"]
[null,6,"Accensione Prestiti",60100,"Emissione di titoli obbligazionari",0,0,0]
[null,null,null,60200,"Accensione prestiti a breve termine",0,0,0]
[null,null,null,60300,"Accensione mutui e altri finanziamenti a medio lungo termine",0,0,0]
[null,null,null,60400,"Altre forme di indebitamento",0,0,0]
[null,null,"TOTALE",null,null,{"$f":"SUM(F6:F9)","v":0},{"$f":"SUM(G6:G9)","v":0},0]

{"sheet":"principali_entrate_tributarie","index":7,"n_rows":11,"n_cols":8,"rows_kept":11,"cut":false,"hidden":false,"merged":[[0,2,0,7],[2,1,2,2],[2,3,2,4],[2,5,2,7]]}
[null,null,"Comune di Lozio\nProvincia di Brescia\n\nDati \"Bilancio Facile\" - Principali Entrate di natura tributaria, contributiva e perequativa\n"]
[]
[null,"TITOLO 1",null,"CATEGORIA",null,"TOTALE"]
[{"$nulls":5},2017,2018,2019]
[{"$nulls":5},"STANZIAMENTI CP","STANZIAMENTI CP","STANZIAMENTI CP"]
[null,1,"Entrate correnti di natura tributaria, contributiva e perequativa",null,"IMU",210000,210000,210000]
[{"$nulls":4},"TARI",71000,71000,71000]
[{"$nulls":4},"TASI",0,0,0]
[{"$nulls":4},"ETC.",{"$f":"F11-F6-F7-F8-F10","v":47000},{"$f":"G11-G6-G7-G8-G10","v":45500},45500]
[{"$nulls":5},0,0,0]
[null,null,"TOTALE",null,null,{"$f":"'entrate_tributarie_-_categorie'!F10","v":328000},{"$f":"'entrate_tributarie_-_categorie'!G10","v":326500},{"$f":"'entrate_tributarie_-_categorie'!H10","v":326500}]

{"sheet":"principali_entrate_da_trasferim","index":8,"n_rows":11,"n_cols":8,"rows_kept":11,"cut":false,"hidden":false,"merged":[[0,2,0,6],[2,1,2,2],[2,3,2,4],[2,5,2,7]]}
[null,null,"Comune di Lozio\nProvincia di Brescia\n\nDati \"Bilancio Facile\" - Principali entrate da trasferimenti correnti\n"]
[]
[null,"TITOLO 2",null,"CATEGORIA",null,"TOTALE"]
[{"$nulls":5},2017,2018,2019]
[{"$nulls":5},"STANZIAMENTI CP","STANZIAMENTI CP","STANZIAMENTI CP"]
[null,2,"Trasferimenti correnti",null,"TRASFERIMENTI DALLO STATO",4580,1580,1580]
[{"$nulls":4},"TRASFERIMENTI DALLA REGIONE",0,0,0]
[{"$nulls":4},"TRASFERIMENTI DALLA PROVINCIA",0,0,0]
[{"$nulls":4},"ETC.",{"$f":"F11-F6-F7-F8-F10","v":11000},{"$f":"G11-G6-G7-G8-G10","v":8600},8600]
[{"$nulls":5},0,0,0]
[null,null,"TOTALE",null,null,{"$f":"entrate_da_trasferimenti_corren!F11","v":15580},{"$f":"entrate_da_trasferimenti_corren!G11","v":10180},{"$f":"entrate_da_trasferimenti_corren!H11","v":10180}]

{"sheet":"principali_entrate_extratributa","index":9,"n_rows":11,"n_cols":8,"rows_kept":11,"cut":false,"hidden":false,"merged":[[0,2,0,5],[2,1,2,2],[2,3,2,4],[2,5,2,7]]}
[null,null,"Comune di Lozio\nProvincia di Brescia\n\nDati \"Bilancio Facile\" - Principali entrate extratributarie\n"]
[]
[null,"TITOLO 3",null,"CATEGORIA",null,"TOTALE"]
[{"$nulls":5},2017,2018,2019]
[{"$nulls":5},"STANZIAMENTI CP","STANZIAMENTI CP","STANZIAMENTI CP"]
[null,3,"Entrate extratributarie",null,"PROVENTI DEI SERVIZI",21620,21620,21620]
[{"$nulls":4},"PROVENTI DA SANZIONI CDS",0,0,0]
[{"$nulls":4},"ETC.",{"$f":"F11-F6-F7-F9-F10","v":156335},{"$f":"G11-G6-G7-G9-G10","v":156335},156335]
[{"$nulls":5},0,0,0]
[{"$nulls":5},0,0,0]
[null,null,"TOTALE",null,null,{"$f":"'entrate_extratributarie_-_categ'!F11","v":177955},{"$f":"'entrate_extratributarie_-_categ'!G11","v":177955},{"$f":"'entrate_extratributarie_-_categ'!H11","v":177955}]

{"sheet":"principali_entrate_in_conto_cap","index":10,"n_rows":11,"n_cols":8,"rows_kept":11,"cut":false,"hidden":false,"merged":[[0,2,0,5],[2,1,2,2],[2,3,2,4],[2,5,2,7]]}
[null,null,"Comune di Lozio\nProvincia di Brescia\n\nDati \"Bilancio Facile\" - Principali entrate in conto capitale\n"]
[]
[null,"TITOLI 4 – 5 – 6",null,"CATEGORIA",null,"TOTALE"]
[{"$nulls":5},2017,2018,2019]
[{"$nulls":5},"STANZIAMENTI CP","STANZIAMENTI CP","STANZIAMENTI CP"]
[{"$nulls":4},"Titolo IV",3847941,1413585,48585]
[{"$nulls":4},"Titolo V",0,0,0]
[{"$nulls":4},"Titolo VI",0,0,0]
[{"$nulls":5},0,0,0]
[{"$nulls":5},0,0,0]
[null,null,"TOTALE",null,null,{"$f":"SUM(F6:F10)","v":3847941},{"$f":"SUM(G6:G10)","v":1413585},48585]

{"sheet":"spesa_-_titoli","index":11,"n_rows":13,"n_cols":6,"rows_kept":13,"cut":false,"hidden":false,"merged":[[0,2,0,5],[2,1,2,2],[2,3,2,5]]}
[null,null,"Comune di Lozio\nProvincia di Brescia\n\nDati \"Bilancio Facile\" - Spese\n"]
[]
[null,"TITOLO",null,"TOTALE"]
[null,null,null,2017,2018,2019]
[null,null,null,"STANZIAMENTI CP","STANZIAMENTI CP","STANZIAMENTI CP"]
[null,1,"Spese correnti",466479.62,458196.62,455830]
[null,2,"Spese in conto capitale",3863941,1429585,65514.62]
[null,3,"Spese per incremento di attività finanziarie",0,0,0]
[null,4,"Rimborso prestiti",39985,41368,42805]
[null,5,"Chiusura anticipazioni da istituto tesoriere",147876,147876,147876]
[null,7,"Spese per conto terzi e partite di giro",282000,282000,282000]
[null,null,null,0,0,0]
[null,null,"TOTALE",{"$f":"SUM(D6:D12)","v":4800281.62},{"$f":"SUM(E6:E12)","v":2359025.62},994025.62]

{"sheet":"spese_correnti_-_missioni","index":12,"n_rows":29,"n_cols":7,"rows_kept":29,"cut":false,"hidden":false,"merged":[[0,2,0,5],[2,1,2,2],[2,3,2,6],[28,1,28,2]]}
[null,null,"Comune di Lozio\nProvincia di Brescia\n\nDati \"Bilancio Facile\" - Spese per missione\n"]
[]
[null,"MISSIONE",null,"SPESE CORRENTI"]
[null,null,null,"2016\nCASSA","2016\nACCERTAMENTI CP","2017\nSTANZIAMENTI CP","2018\nSTANZIAMENTI CP"]
[null,1,"SERVIZI ISTITUZIONALI, GENERALI E DI GESTIONE",535841.49,200633.62,193215.62,191762]
[null,2,"GIUSTIZIA",0,0,0,0]
[null,3,"ORDINE PUBBLICO E SICUREZZA",0,0,0,0]
[null,4,"ISTRUZIONE E DIRITTO ALLO STUDIO",37384.589999999997,31007,31007,31007]
[null,5,"TUTELA E VALORIZZAZIONE DEI BENI E DELLE ATTIVITA' CULTURALI",9586.51,3800,3800,3800]
[null,6,"POLITICHE GIOVANILI, SPORT E TEMPO LIBERO",3437.58,1600,1600,1600]
[null,7,"TURISMO",231308.4,3200,3200,3200]
[null,8,"ASSETTO DEL TERRITORIO ED EDILIZIA ABITATIVA",219619.94,0,0,0]
[null,9,"SVILUPPO SOSTENIBILE E TUTELA DEL TERRITORIO E DELL'AMBIENTE",1269179.08,63200,63200,63200]
[null,10,"TRASPORTI E DIRITTO ALLA MOBILITA'",955411.28,75956,75956,75956]
[null,11,"SOCCORSO CIVILE",5777.74,5120,5120,5120]
[null,12,"DIRITTI SOCIALI, POLITICHE SOCIALI E FAMIGLIA",74698.5,36785,36785,36785]
[null,13,"TUTELA DELLA SALUTE",0,0,0,0]
[null,14,"SVILUPPO ECONOMICO E COMPETITIVITA'",353800,0,0,0]
[null,15,"POLITICHE PER IL LAVORO E LA FORMAZIONE PROFESSIONALE",0,0,0,0]
[null,16,"AGRICOLTURA, POLITICHE AGROALIMENTARI E PESCA",6760,4260,4260,4260]
[null,17,"ENERGIA E DIVERSIFICAZIONE DELLE FONTI ENERGETICHE",0,0,0,0]
[null,18,"RELAZIONI CON LE ALTRE AUTONOMIE TERRITORIALI E LOCALI RELAZIONI CON LE ALTRE AUTONOMIE TERRITORIALI E LOCALI",0,0,0,0]
[null,19,"RELAZIONI INTERNAZIONALI",0,0,0,0]
[null,20,"FONDI E ACCANTONAMENTI",72624.95,14755,14755,14755]
[null,50,"DEBITO PUBBLICO",61262,26163,25298,24385]
[null,60,"ANTICIPAZIONI FINANZIARIE",143037,147876,147876,147876]
[null,99,"SERVIZI PER CONTO TERZI",285078.90999999997,282000,282000,282000]
[null,null,null,0,0,0,0]
[null,"TOTALE",null,{"$f":"SUM(D5:D28)","v":4264807.9700000007},{"$f":"SUM(E5:E28)","v":896355.62},888072.62,885706]

{"sheet":"spese_correnti_-_macroaggregati","index":13,"n_rows":17,"n_cols":6,"rows_kept":17,"cut":false,"hidden":false,"merged":[[0,2,0,5],[2,1,2,2],[2,3,2,5]]}
[null,null,"Comune di Lozio\nProvincia di Brescia\n\nDati \"Bilancio Facile\" - Spese per macroaggregati\n"]
[]
[null,"TITOLO 1",null,"TOTALE"]
[null,null,null,2017,2018,2019]
[null,null,null,"STANZIAMENTI CP","STANZIAMENTI CP","STANZIAMENTI CP"]
[null,1,"Redditi da lavoro dipendente",95085,95085,95085]
[null,2,"Imposte e tasse a carico dell'ente",10512,10512,10512]
[null,3,"Acquisto di beni e servizi",239899.62,232481.62,231028]
[null,4,"Trasferimenti correnti",66185,66185,66185]
[null,5,"Trasferimenti di tributi",0,0,0]
[null,6,"Fondi perequativi",0,0,0]
[null,7,"Interessi passivi",26163,25298,24385]
[null,8,"Altre spese per redditi da capitale",0,0,0]
[null,9,"Rimborsi e poste correttive delle entrate",1500,1500,1500]
[null,10,"Altre spese correnti",27135,27135,27135]
[null,null,null,0,0,0]
[null,null,"TOTALE",{"$f":"SUM(D6:D16)","v":466479.62},{"$f":"SUM(E6:E16)","v":458196.62},455830]

{"sheet":"spese_in_conto_capitale_-_missi","index":14,"n_rows":30,"n_cols":6,"rows_kept":30,"cut":false,"hidden":false,"merged":[[0,2,0,5],[2,1,2,2],[2,3,2,5],[29,1,29,2]]}
[null,null,"Comune di Lozio\nProvincia di Brescia\n\nDati \"Bilancio Facile\" - Spese in conto capitale per missioni\n"]
[]
[null,"MISSIONE",null,"SPESE IN C/CAPITALE"]
[null,null,null,2017,2018,2019]
[null,null,null,"STANZIAMENTI CP","STANZIAMENTI CP","STANZIAMENTI CP"]
[null,1,"SERVIZI ISTITUZIONALI, GENERALI E DI GESTIONE",307918,20385,21314.62]
[null,2,"GIUSTIZIA",0,0,0]
[null,3,"ORDINE PUBBLICO E SICUREZZA",0,0,0]
[null,4,"ISTRUZIONE E DIRITTO ALLO STUDIO",0,0,0]
[null,5,"TUTELA E VALORIZZAZIONE DEI BENI E DELLE ATTIVITA' CULTURALI",0,0,0]
[null,6,"POLITICHE GIOVANILI, SPORT E TEMPO LIBERO",250000,0,0]
[null,7,"TURISMO",265000,1000000,0]
[null,8,"ASSETTO DEL TERRITORIO ED EDILIZIA ABITATIVA",2000,2000,2000]
[null,9,"SVILUPPO SOSTENIBILE E TUTELA DEL TERRITORIO E DELL'AMBIENTE",1836000,26000,26000]
[null,10,"TRASPORTI E DIRITTO ALLA MOBILITA'",833523,230000,15000]
[null,11,"SOCCORSO CIVILE",4500,0,0]
[null,12,"DIRITTI SOCIALI, POLITICHE SOCIALI E FAMIGLIA",11200,1200,1200]
[null,13,"TUTELA DELLA SALUTE",0,0,0]
[null,14,"SVILUPPO ECONOMICO E COMPETITIVITA'",353800,150000,0]
[null,15,"POLITICHE PER IL LAVORO E LA FORMAZIONE PROFESSIONALE",0,0,0]
[null,16,"AGRICOLTURA, POLITICHE AGROALIMENTARI E PESCA",0,0,0]
[null,17,"ENERGIA E DIVERSIFICAZIONE DELLE FONTI ENERGETICHE",0,0,0]
[null,18,"RELAZIONI CON LE ALTRE AUTONOMIE TERRITORIALI E LOCALI RELAZIONI CON LE ALTRE AUTONOMIE TERRITORIALI E LOCALI",0,0,0]
[null,19,"RELAZIONI INTERNAZIONALI",0,0,0]
[null,20,"FONDI E ACCANTONAMENTI",0,0,0]
[null,50,"DEBITO PUBBLICO",0,0,0]
[null,60,"ANTICIPAZIONI FINANZIARIE",0,0,0]
[null,99,"SERVIZI PER CONTO TERZI",0,0,0]
[null,null,null,0,0,0]
[null,"TOTALE",null,{"$f":"SUM(D6:D29)","v":3863941},{"$f":"SUM(E6:E29)","v":1429585},65514.619999999995]

{"sheet":"spese_in_conto_capitale_-_macro","index":15,"n_rows":12,"n_cols":6,"rows_kept":12,"cut":false,"hidden":false,"merged":[[0,2,0,5],[2,1,2,2],[2,3,2,5]]}
[null,null,"Comune di Lozio\nProvincia di Brescia\n\nDati \"Bilancio Facile\" - Spese in conto capitale per macroaggregati\n"]
[]
[null,"TITOLO 2",null,"TOTALE TOTALE"]
[null,null,null,2017,2018,2019]
[null,null,null,"STANZIAMENTI CP","STANZIAMENTI CP","STANZIAMENTI CP"]
[null,1,"Tributi in conto capitale a carico dell'ente",0,0,0]
[null,2,"Investimenti fissi lordi e acquisto di terreni",3392341,1426785,62714.62]
[null,3,"Contributi agli investimenti",471600,2800,2800]
[null,4,"Altri trasferimenti in conto capitale",0,0,0]
[null,5,"Altre spese in conto capitale",0,0,0]
[null,null,null,0,0,0]
[null,null,"TOTALE",{"$f":"SUM(D6:D11)","v":3863941},{"$f":"SUM(E6:E11)","v":1429585},65514.62]

{"sheet":"principali_spese_per_investimen","index":16,"n_rows":11,"n_cols":6,"rows_kept":11,"cut":false,"hidden":false,"merged":[[0,2,0,5],[2,1,2,2],[2,3,2,5]]}
[null,null,"Comune di Lozio\nProvincia di Brescia\n\nDati \"Bilancio Facile\" - Principali spese per investimento\n"]
[]
[null,"TITOLO 2",null,"TOTALE TOTALE"]
[null,null,null,2017,2018,2019]
[null,null,null,"STANZIAMENTI CP","STANZIAMENTI CP","STANZIAMENTI CP"]
[null,1,"Scuole",0,0,0]
[null,2,"Strade",833523,230000,15000]
[null,3,"Patrimonio comunale",56118,19585,20514.62]
[null,4,"Altro",{"$f":"D11-D6-D7-D8-D10","v":2974300},{"$f":"E11-E6-E7-E8-E10","v":1180000},30000.000000000004]
[null,null,null,0,0,0]
[null,null,"TOTALE",{"$f":"'spesa_-_titoli'!D7","v":3863941},{"$f":"'spesa_-_titoli'!E7","v":1429585},{"$f":"'spesa_-_titoli'!F7","v":65514.62}]

{"sheet":"equilibri_di_bilancio","index":17,"n_rows":64,"n_cols":19,"rows_kept":64,"cut":false,"hidden":false,"merged":[[19,2,19,3],[31,2,31,3],[39,2,39,3],[47,2,47,3],[0,6,0,11],[2,1,2,15],[4,4,4,6],[4,9,4,11],[4,13,4,15],[7,2,7,3]]}
[{"$nulls":6},"Comune di Lozio\nProvincia di Brescia\n\nDati \"Bilancio Facile\" - Equilibri 2017-2019\n"]
[]
[null,"VERIFICA  DEGLI  EQUILIBRI"]
[null,null,null," "]
[{"$nulls":4},"ENTRATA",{"$nulls":4},"SPESA",null,null,null,"DIFFERENZA STANZIAMENTI"]
[{"$nulls":4},2017,2018,2019,null,null,2017,2018,2019,null,2017,2018,2019]
[]
[null,1,"Equilibrio della parte corrente (pareggio economico)"]
[]
[null,null,null,"Titolo",{"$nulls":4},"Titolo"]
[null,null,null,"UTILIZZO AVANZO",0,0,0]
[null,null,null,"FPV SPESE CORRENTI",929.62,929.62,929.62]
[null,null,null,1,{"$f":"'entrata_-_titoli'!D6","v":328000},{"$f":"'entrata_-_titoli'!E6","v":326500},{"$f":"'entrata_-_titoli'!F6","v":326500},null,1,{"$f":"'spesa_-_titoli'!D6","v":466479.62},{"$f":"'spesa_-_titoli'!E6","v":458196.62},{"$f":"'spesa_-_titoli'!F6","v":455830}]
[null,null,null,2,{"$f":"'entrata_-_titoli'!D7","v":15580},{"$f":"'entrata_-_titoli'!E7","v":10180},{"$f":"'entrata_-_titoli'!F7","v":10180},null,4,{"$f":"'spesa_-_titoli'!D9","v":39985},{"$f":"'spesa_-_titoli'!E9","v":41368},{"$f":"'spesa_-_titoli'!F9","v":42805}]
[null,null,null,3,{"$f":"'entrata_-_titoli'!D8","v":177955},{"$f":"'entrata_-_titoli'!E8","v":177955},{"$f":"'entrata_-_titoli'!F8","v":177955}]
[null,null,null,"TOTALE",{"$f":"SUM(E11:E15)","v":522464.62},{"$f":"SUM(F11:F15)","v":515564.62},515564.62,null,"TOTALE",{"$f":"SUM(J13:J15)","v":506464.62},{"$f":"SUM(K13:K15)","v":499564.62},498635,null,{"$f":"E16-J16","v":16000},{"$f":"F16-K16","v":16000},16929.619999999995]
[]
[]
[]
[null,2,"Equilibrio della parte investimenti",{"$nulls":6}," "]
[]
[null,null,null,"Titolo",{"$nulls":4},"Titolo"]
[null,null,null,"UTILIZZO AVANZO",0,0,0]
[null,null,null,"FPV SPESE IN CONTO CAPITALE",0,0,0]
[null,null,null,4,{"$f":"'entrata_-_titoli'!D9","v":3847941},{"$f":"'entrata_-_titoli'!E9","v":1413585},{"$f":"'entrata_-_titoli'!F9","v":48585},null,2,{"$f":"'spesa_-_titoli'!D7","v":3863941},{"$f":"'spesa_-_titoli'!E7","v":1429585},{"$f":"'spesa_-_titoli'!F7","v":65514.62}]
[null,null,null,5,{"$f":"'entrata_-_titoli'!D10","v":0},{"$f":"'entrata_-_titoli'!E10","v":0},{"$f":"'entrata_-_titoli'!F10","v":0},null,3,{"$f":"'spesa_-_titoli'!D8","v":0},{"$f":"'spesa_-_titoli'!E8","v":0},{"$f":"'spesa_-_titoli'!F8","v":0}]
[null,null,null,6,{"$f":"'entrata_-_titoli'!D11","v":0},{"$f":"'entrata_-_titoli'!E11","v":0},{"$f":"'entrata_-_titoli'!F11","v":0}]
[null,null,null,"TOTALE",{"$f":"SUM(E23:E27)","v":3847941},{"$f":"SUM(F23:F27)","v":1413585},48585,null,"TOTALE",{"$f":"SUM(J25:J27)","v":3863941},{"$f":"SUM(K25:K27)","v":1429585},65514.62,null,{"$f":"E28-J28","v":-16000},{"$f":"F28-K28","v":-16000},-16929.620000000003]
[]
[]
[]
[null,3,"Movimento fondi - Anticipazione di cassa"]
[]
[null,null,null,"Titolo",{"$nulls":4},"Titolo"]
[null,null,null,7,{"$f":"'entrata_-_titoli'!D12","v":147876},{"$f":"'entrata_-_titoli'!E12","v":147876},{"$f":"'entrata_-_titoli'!F12","v":147876},null,5,{"$f":"'spesa_-_titoli'!D10","v":147876},{"$f":"'spesa_-_titoli'!E10","v":147876},{"$f":"'spesa_-_titoli'!F10","v":147876}]
[null,null,null,"TOTALE",{"$f":"E35","v":147876},{"$f":"F35","v":147876},147876,null,"TOTALE",{"$f":"J35","v":147876},{"$f":"K35","v":147876},147876,null,{"$f":"E36-J36","v":0},{"$f":"F36-K36","v":0},0]
[]
[]
[]
[null,4,"Equilibrio delle partite di giro"]
[]
[null,null,null,"Titolo",{"$nulls":4},"Titolo"]
[null,null,null,9,{"$f":"'entrata_-_titoli'!D13","v":282000},{"$f":"'entrata_-_titoli'!E13","v":282000},{"$f":"'entrata_-_titoli'!F13","v":282000},null,7,{"$f":"'spesa_-_titoli'!D11","v":282000},{"$f":"'spesa_-_titoli'!E11","v":282000},{"$f":"'spesa_-_titoli'!F11","v":282000}]
[null,null,null,"TOTALE",{"$f":"E43","v":282000},{"$f":"F43","v":282000},282000,null,"TOTALE",{"$f":"J43","v":282000},{"$f":"K43","v":282000},282000,null,{"$f":"E44-J44","v":0},{"$f":"F44-K44","v":0},0]
[]
[]
[]
[null,5,"Pareggio finanziario"]
[]
[null,null,null,"Titolo",{"$nulls":4},"Titolo"]
[null,null,null,"UTILIZZO AVANZO PARTE CORRENTE",{"$f":"E11","v":0},{"$f":"F11","v":0},0]
[null,null,null,"UTILIZZO AVANZO PARTE CAPITALE",{"$f":"E23","v":0},{"$f":"F23","v":0},0]
[null,null,null,"FPV SPESE CORRENTI",{"$f":"E12","v":929.62},{"$f":"F12","v":929.62},929.62]
[null,null,null,"FPV SPESE IN CONTO CAPITALE",{"$f":"E24","v":0},{"$f":"F24","v":0},0]
[null,null,null,1,{"$f":"E13","v":328000},{"$f":"F13","v":326500},326500,null,1,{"$f":"J13","v":466479.62},{"$f":"K13","v":458196.62},455830]
[null,null,null,2,{"$f":"E14","v":15580},{"$f":"F14","v":10180},10180,null,2,{"$f":"J25","v":3863941},{"$f":"K25","v":1429585},65514.62]
[null,null,null,3,{"$f":"E15","v":177955},{"$f":"F15","v":177955},177955,null,3,{"$f":"J26","v":0},{"$f":"K26","v":0},0]
[null,null,null,4,{"$f":"E25","v":3847941},{"$f":"F25","v":1413585},48585,null,4,{"$f":"J14","v":39985},{"$f":"K14","v":41368},42805,{"$nulls":5},16,6]
[null,null,null,5,{"$f":"E26","v":0},{"$f":"F26","v":0},0,null,5,{"$f":"J35","v":147876},{"$f":"K35","v":147876},147876,{"$nulls":5},16,6]
[null,null,null,6,{"$f":"E27","v":0},{"$f":"F27","v":0},0,null,7,{"$f":"J43","v":282000},{"$f":"K43","v":282000},282000,{"$nulls":5},16,6]
[null,null,null,7,{"$f":"E35","v":147876},{"$f":"F35","v":147876},147876]
[null,null,null,9,{"$f":"E43","v":282000},{"$f":"F43","v":282000},282000]
[]
[null,null,null,"TOTALE",{"$f":"SUM(E51:E63)","v":4800281.62},{"$f":"SUM(F51:F63)","v":2359025.62},994025.62,null,"TOTALE",{"$f":"SUM(J55:J63)","v":4800281.62},{"$f":"SUM(K55:K63)","v":2359025.62},994025.62,null,{"$f":"E64-J64","v":0},{"$f":"F64-K64","v":0},{"$f":"G64-L64","v":0}]

{"sheet":"entità_mutui","index":18,"n_rows":17,"n_cols":7,"rows_kept":17,"cut":false,"hidden":false,"merged":[[0,2,0,5]]}
[null,null,"Comune di Lozio\nProvincia di Brescia\n\nDati \"Bilancio Facile\" - Entità dei mutui\n"]
[]
[null,null,2015,2016,2017,2018,2019]
[]
[null,"DEBITO RESIDUO INIZIALE",959271.24,{"$f":"C9","v":921873.85},{"$f":"D9","v":883207.88},843224.14,801857.37]
[null,"NUOVI PRESTITI",0,0,0,0,0]
[null,"RIMBORSO PRESTITI",-37397.39,-38665.97,-39983.74,-41366.769999999997,-42803.47]
[null,"ESTINZIONI ANTICIPATE",0,0,0,0,0]
[null,"TOTALE DEBITO AL 31/12",{"$f":"SUM(C5:C8)","v":921873.85},{"$f":"SUM(D5:D8)","v":883207.88},843224.14,801857.37,759053.9]
{"$rows_empty":7}
[null," "]